Cogmind - Beta 10.2 @@@ ROGUE MODE // 2021.03.11 @ 20:33:48 Player: Exp. Geonium Core Result: Self-destructed Performance ------------- Evolutions (2) 1000 Regions Visited (6) 1200 Robots Destroyed (16) 80 Value Destroyed (395) 395 Prototype IDs (0) 0 Alien Tech Used (0) 0 Bonus (0) 0 TOTAL SCORE: 2675 Bonus ------- None Cogmind --------- Core Integrity 241/550 Matter 280/300 Energy 86/100 System Corruption 0% Temperature Cool (0) Movement Core (100) Ox1 Location -8/Storage Parts ------- > --- POWER (1) -------- (None) > --- PROPULSION (2) --- (None) > --- UTILITY (6) ------ Improved Signal Interpreter Improved Signal Interpreter Targeting Computer Improved Targeting Computer Drone Bay (0/2) > --- WEAPON (2) ------- (None) > --- INVENTORY (4) ---- Ion Engine Large Storage Unit Large Storage Unit Drone Bay (0/2) Peak State ------------ > --- POWER ------------ (None) > --- PROPULSION ------- (None) > --- UTILITY ---------- Improved Signal Interpreter Improved Signal Interpreter Targeting Computer Improved Targeting Computer Drone Bay Drone Bay > --- WEAPON ----------- (None) > --- INVENTORY -------- Ion Engine Large Storage Unit Large Storage Unit [Rating: 17] Favorites ----------- Power Ion Engine Engine Ion Engine Propulsion Wheel Wheel Wheel Utility Improved Signal Interpreter Device Improved Heat Sink Storage Small Storage Unit Processor Improved Signal Interpreter Weapon Small Laser Energy Gun Small Laser Ballistic Gun Light Assault Rifle Build | -11 -10 -10 -9 -9 -8 -8 ------- Run | Scr Mat Min Mat Min Mat Sto Slots Evolved 4 | . . . 2 . 2 . Power . | . . . . . . . Propulsion . | . . . . . . . Utility 4 | . . . 2 . 2 . Weapon . | . . . . . . . Parts Attached 28 | 6 1 8 4 . 7 2 Power 3 | 1 . 1 1 . . . Engine 3 | 1 . 1 1 . . . Core . | . . . . . . . Reactor . | . . . . . . . Propulsion 6 | 2 . 3 . . 1 . Treads . | . . . . . . . Leg . | . . . . . . . Wheel 6 | 2 . 3 . . 1 . Hover . | . . . . . . . Flight . | . . . . . . . Utility 9 | 1 1 . 2 . 3 2 Device 3 | . . . . . 1 2 Storage 1 | 1 . . . . . . Processor 5 | . 1 . 2 . 2 . Hackware . | . . . . . . . Protection . | . . . . . . . Artifact . | . . . . . . . Weapon 10 | 2 . 4 1 . 3 . Energy Gun 6 | 1 . 3 1 . 1 . Energy Cannon . | . . . . . . . Ballistic Gun 4 | 1 . 1 . . 2 . Ballistic Cannon . | . . . . . . . Launcher . | . . . . . . . Special Weapon . | . . . . . . . Impact Weapon . | . . . . . . . Slashing Weapon . | . . . . . . . Piercing Weapon . | . . . . . . . Special Melee Weapon . | . . . . . . . Unidentified Prototypes . | . . . . . . . Parts Lost 17 | . . 5 4 2 6 . Power 3 | . . 1 2 . . . Propulsion 4 | . . 1 . 2 1 . Utility 2 | . . . . . 2 . Weapon 8 | . . 3 2 . 3 . Highest Loss Streak 6 | . . 3 2 4 6 . Average Slot Usage (%) 84 | . 95 92 94 60 57 36 Engine 9 | . 14 12 9 . . . Wheel 19 | . 28 26 22 16 . . Device 1 | . . . . . 6 . Storage 10 | . 14 14 11 11 . . Processor 24 | . 10 14 33 33 43 36 Energy Gun 10 | . 14 16 8 . . . Ballistic Gun 7 | . 14 6 9 . 6 . Naked Turns . | . . . . . . . Heaviest Build 15 | 11 11 14 15 4 4 6 Greatest Support 26 | 26 26 26 26 26 10 3 Greatest Overweight (x) 1 | . . . . 1 1 1 Average Overweight (x) . | . . . . . . . Largest Inventory Capacity 6 | 6 6 6 6 6 6 4 Average Capacity 5 | 5 6 6 6 6 4 4 Most Carried 6 | 6 6 6 6 6 6 4 Average Carried 4 | 2 5 5 5 6 3 3 Final Capacity 6 | 6 6 6 6 6 4 4 Final Carried 6 | 6 6 6 6 6 3 4 Class Distribution -------------------- 91% | Mutant 8% | Scavenger-Mutant Dominant Class ---------------- Mutant | -10/Materials Mutant | -10/Mines Mutant | -9/Materials Mutant | -9/Mines Mutant | -8/Materials Mutant | -8/Storage Resources | -11 -10 -10 -9 -9 -8 -8 ----------- Run | Scr Mat Min Mat Min Mat Sto Matter Collected 511 | 281 . 96 48 . 86 . Remotely . | . . . . . . . Salvage Created 608 | 161 . 196 129 . 122 . Parts 38 | 8 . 17 7 . 6 . Haulers Intercepted . | . . . . . . . Recyclers Shooed 1 | . . 1 . . . . Parts Field Recycled . | . . . . . . . Retrieved Matter . | . . . . . . . Parts Self-Destructed . | . . . . . . . Prevented . | . . . . . . . Kills | -11 -10 -10 -9 -9 -8 -8 ------- Run | Scr Mat Min Mat Min Mat Sto Combat Hostiles Destroyed 11 | . . 6 3 . 2 . Guns 11 | . . 6 3 . 2 . Classes Destroyed 5 | 2 . 2 . . 1 . Worker 1 | . . . . . 1 . Tunneler 3 | 3 . . . . . . Recycler 1 | 1 . . . . . . Swarmer 3 | . . 3 . . . . Grunt 8 | . . 3 3 . 2 . Best Kill Streak 3 | 3 . 3 2 . 3 . Combat Bots Only 3 | . . 3 2 . 2 . Max Kills in Single Turn 1 | 1 . 1 1 . 1 . Gunslinging . | . . . . . . . Exploded . | . . . . . . . Melee . | . . . . . . . Uniques/NPCs Destroyed . | . . . . . . . Combat | -11 -10 -10 -9 -9 -8 -8 -------- Run | Scr Mat Min Mat Min Mat Sto Damage Taken 1772 | . . 527 469 150 608 18 Core 685 | . . 140 126 110 291 18 Absorbed by Shields . | . . . . . . . Core Remaining (%) 61 | 100 . 44 . 41 . . Volleys Fired 86 | 21 . 38 12 . 15 . Largest 2 | 2 . 2 2 . 2 . Hottest 88 | 60 . 80 88 . 65 . Shots Fired 146 | 42 . 60 24 . 20 . Gun 146 | 42 . 60 24 . 20 . Cannon . | . . . . . . . Launcher . | . . . . . . . Special . | . . . . . . . Kinetic 66 | 21 . 14 12 . 19 . Thermal 69 | 21 . 46 1 . 1 . Explosive . | . . . . . . . Electromagnetic 11 | . . . 11 . . . Robot Hit Streak 22 | 7 . 8 22 . 13 . Robot Miss Streak 2 | 2 . 2 1 . 1 . Penetration Max . | . . . . . . . Secondary Targets 3 | . . 3 . . . . Max Gunslinging Chain 1 | . . 1 . . . . Shots Hit Robots 106 | 28 . 40 21 . 17 . Core Hits 32 | 7 . 14 6 . 5 . Critical Hits . | . . . . . . . Critical Kills . | . . . . . . . Critical Parts Destroyed . | . . . . . . . Melee Attacks . | . . . . . . . Impact . | . . . . . . . Slashing . | . . . . . . . Piercing . | . . . . . . . Sneak Attacks . | . . . . . . . Combat Hostiles . | . . . . . . . Follow-up Attacks . | . . . . . . . Damage Inflicted 1267 | 266 . 414 303 . 284 . Guns 1262 | 266 . 414 303 . 279 . Cannons . | . . . . . . . Explosions . | . . . . . . . Melee . | . . . . . . . Ramming 5 | . . . . . 5 . Kinetic 581 | 95 . 56 167 . 263 . Thermal 559 | 171 . 358 14 . 16 . Explosive . | . . . . . . . Electromagnetic 122 | . . . 122 . . . Impact . | . . . . . . . Slashing . | . . . . . . . Piercing . | . . . . . . . Highest Corruption . | . . . . . . . Average Corruption . | . . . . . . . Corruption Purged . | . . . . . . . Overload Shots . | . . . . . . . Overflow Damage . | . . . . . . . Projectiles . | . . . . . . . Explosions . | . . . . . . . Melee . | . . . . . . . Knockbacks . | . . . . . . . Impact . | . . . . . . . Kinetic . | . . . . . . . Secondary . | . . . . . . . Self-Inflicted Damage 2 | . . . . . 2 . Shots . | . . . . . . . Rammed 4 | . . . . . 4 . Targets Rammed 4 | . . . . . 4 . Kicked . | . . . . . . . Crushed . | . . . . . . . Highest Temperature 246 | 60 . 246 18 . 20 . Average Temperature 67 | 32 . 104 6 . 10 . Received Heat Transfer 681 | . . 234 195 . 243 9 Siege Activations . | . . . . . . . Robots Corrupted . | . . . . . . . Combat Hostiles . | . . . . . . . Parts Fried . | . . . . . . . Impact Corruptions . | . . . . . . . Robots Melted . | . . . . . . . Combat Hostiles . | . . . . . . . Parts Melted 1 | 1 . . . . . . Heat Transferred 1274 | 400 . 800 37 . 37 . Parts Sabotaged . | . . . . . . . Parts Stolen . | . . . . . . . Parts Stripped . | . . . . . . . Power Chain Reactions . | . . . . . . . Missiles Intercepted . | . . . . . . . Alert | -11 -10 -10 -9 -9 -8 -8 ------- Run | Scr Mat Min Mat Min Mat Sto Peak Influence 162 | 20 13 134 162 55 74 5 Initial 55 | . 13 4 52 55 13 5 Average 60 | 9 13 93 113 51 27 4 Maximum Alert Level . | . . . . . . . Low Security (%) 100 | 100 100 100 100 100 100 100 Level 1 . | . . . . . . . Level 2 . | . . . . . . . Level 3 . | . . . . . . . Level 4 . | . . . . . . . Level 5 . | . . . . . . . High Security . | . . . . . . . Max Security . | . . . . . . . Squads Dispatched 3 | . 1 . 2 . . . Investigation . | . . . . . . . Extermination . | . . . . . . . Reinforcement 3 | . 1 . 2 . . . Assault . | . . . . . . . Garrison . | . . . . . . . Intercept . | . . . . . . . Construction Impeded . | . . . . . . . Haulers Reinforced . | . . . . . . . Stealth | -11 -10 -10 -9 -9 -8 -8 --------- Run | Scr Mat Min Mat Min Mat Sto Distress Signals 4 | . . . 1 . 2 1 Communications Jammed . | . . . . . . . Distress Signals . | . . . . . . . Times Spotted 37 | . 1 8 13 4 6 5 Peak Tracking Total 7 | . 1 3 7 4 5 6 Tactical Retreats 1 | . . 1 . . . . Traps | -11 -10 -10 -9 -9 -8 -8 ------- Run | Scr Mat Min Mat Min Mat Sto Traps Triggered . | . . . . . . . Indirectly . | . . . . . . . Trap Hack Attempts . | . . . . . . . Triggered . | . . . . . . . Disarmed . | . . . . . . . Reprogrammed . | . . . . . . . Reused . | . . . . . . . Traps Extracted . | . . . . . . . Installed . | . . . . . . . Triggered . | . . . . . . . Machines | -11 -10 -10 -9 -9 -8 -8 ---------- Run | Scr Mat Min Mat Min Mat Sto Machines Disabled . | . . . . . . . Max in Single Turn . | . . . . . . . Machines Sabotaged . | . . . . . . . Garrisons Compromised . | . . . . . . . Overloaded Fab Kills . | . . . . . . . Fab Network Shutdowns . | . . . . . . . Hacking | -11 -10 -10 -9 -9 -8 -8 --------- Run | Scr Mat Min Mat Min Mat Sto Machines Accessed 3 | . . . 2 . . 1 Terminals 3 | . . . 2 . . 1 Fabricators . | . . . . . . . Repair Stations . | . . . . . . . Recycling Units . | . . . . . . . Scanalyzers . | . . . . . . . Garrison Access . | . . . . . . . Total Hacks 5 | . . . 4 . . 1 Successful 1 | . . . . . . 1 Failed 4 | . . . 4 . . . Catastrophic 2 | . . . 2 . . . Database Lockouts . | . . . . . . . Manual 4 | . . . 4 . . . Terminals 5 | . . . 4 . . 1 Fabricators . | . . . . . . . Repair Stations . | . . . . . . . Recycling Units . | . . . . . . . Scanalyzers . | . . . . . . . Garrison Access . | . . . . . . . Terminal Hacks 1 | . . . . . . 1 Open Door 1 | . . . . . . 1 Fabricator Hacks . | . . . . . . . Repair Station Hacks . | . . . . . . . Recycling Unit Hacks . | . . . . . . . Scanalyzer . | . . . . . . . Garrison Access Hacks . | . . . . . . . Unauthorized Hacks . | . . . . . . . Terminals . | . . . . . . . Fabricators . | . . . . . . . Repair Stations . | . . . . . . . Recycling Units . | . . . . . . . Scanalyzers . | . . . . . . . Garrison Access . | . . . . . . . Data Cores Recovered . | . . . . . . . Used . | . . . . . . . Hacking Detections 2 | . . . 2 . . . Full Trace Events . | . . . . . . . Feedback Events . | . . . . . . . Feedback Blocked . | . . . . . . . Robot Schematics Acquired . | . . . . . . . Robots Built . | . . . . . . . Matter . | . . . . . . . Time . | . . . . . . . Total Robot Build Rating . | . . . . . . . Part Schematics Acquired . | . . . . . . . Parts Built . | . . . . . . . Matter . | . . . . . . . Time . | . . . . . . . Total Part Build Rating . | . . . . . . . Parts Repaired . | . . . . . . . Time . | . . . . . . . Parts Recycled . | . . . . . . . Recycled Matter . | . . . . . . . Retrieved Matter . | . . . . . . . Retrieved Components . | . . . . . . . Parts Scanalyzed . | . . . . . . . Part Schematics Acquired . | . . . . . . . Parts Damaged . | . . . . . . . Bothacking | -11 -10 -10 -9 -9 -8 -8 ------------ Run | Scr Mat Min Mat Min Mat Sto Used RIF Installer . | . . . . . . . Robots Hacked . | . . . . . . . Non-combat . | . . . . . . . Combat . | . . . . . . . Robot Hacks Applied . | . . . . . . . Relay Couplers Released . | . . . . . . . Robots Rewired . | . . . . . . . Allies Hacked . | . . . . . . . Hacks Repelled . | . . . . . . . Allies | -11 -10 -10 -9 -9 -8 -8 -------- Run | Scr Mat Min Mat Min Mat Sto Total Allies . | . . . . . . . Largest Group . | . . . . . . . Highest-Rated Group . | . . . . . . . Highest-Rated Ally . | . . . . . . . Total Orders . | . . . . . . . Ally Attacks . | . . . . . . . Total Damage . | . . . . . . . Kills . | . . . . . . . Allies Corrupted . | . . . . . . . Allies Melted . | . . . . . . . Intel | -11 -10 -10 -9 -9 -8 -8 ------- Run | Scr Mat Min Mat Min Mat Sto Robot Analysis Total . | . . . . . . . Derelict Logs Recovered . | . . . . . . . Drone Launches 4 | . . . . . . 4 Drone Recoveries . | . . . . . . . Exploration | -11 -10 -10 -9 -9 -8 -8 ------------- Run | Scr Mat Min Mat Min Mat Sto Turns Passed 848 | 126 112 249 175 26 139 21 Spaces Moved 629 | 59 121 151 133 28 109 28 Core 130 | 2 . . . 1 99 28 Treads . | . . . . . . . Legs . | . . . . . . . Wheels 499 | 57 121 151 133 27 10 . Hover . | . . . . . . . Flight . | . . . . . . . Fastest Speed 50 | 50 90 80 90 90 50 50 Average Speed 86 | 88 90 88 90 93 79 55 Slowest Speed 100 | 90 90 90 90 100 100 100 Overloaded Moves . | . . . . . . . Propulsion Burnouts . | . . . . . . . Robots Hopped . | . . . . . . . Cave-ins Triggered . | . . . . . . . Exploration Rate (%) 17 | 4 21 34 22 15 14 9 Regions Visited 6 Branch Regions 3 Pre-discovered Areas . | . . . . . . . Known Exits Taken 5 | . 1 1 1 1 1 . Unknown Exits Taken 1 | 1 . . . . . . Scrap Searched . | . . . . . . . Spaces Dug . | . . . . . . . Terrain Destroyed . | . . . . . . . Melee . | . . . . . . . Projectile . | . . . . . . . AOE . | . . . . . . . Terrain Rammed . | . . . . . . . Walls Destroyed . | . . . . . . . Machines Disabled . | . . . . . . . Actions | -11 -10 -10 -9 -9 -8 -8 --------- Run | Scr Mat Min Mat Min Mat Sto Total 783 | 91 123 207 164 27 139 32 Wait 16 | . . 1 13 . 2 . Move 623 | 58 120 150 132 27 108 28 Hop . | . . . . . . . Pick Up 18 | 6 1 6 2 . 2 1 Fast Attach 15 | 6 1 3 1 . 2 2 Attach 10 | . . 3 3 . 4 . Detach 1 | . . . 1 . . . Swap 3 | . . 2 . . 1 . Drop 7 | . 1 4 . . 1 1 Fire 86 | 21 . 38 12 . 15 . Melee . | . . . . . . . Ram 4 | . . . . . 4 . Kick . | . . . . . . . Crush . | . . . . . . . Escape Stasis . | . . . . . . . Rewire . | . . . . . . . Trap . | . . . . . . . Miscellaneous . | . . . . . . . Route ------- -11/Scrapyard -10/Materials -10/Mines -9/Materials -9/Mines -8/Materials -8/Storage History --------- Turn | Location | Event 25 | -11/Scrapyard | Discovered new exit (range 16) 127 | -11/Scrapyard | Entered Materials 136 | -10/Materials | Discovered new exit (range 15) 238 | -10/Materials | Identified exit to Mines 239 | -10/Materials | Entered Mines 315 | -10/Mines | Build established: Mutant 349 | -10/Mines | Lost 3 parts (1p2w) 399 | -10/Mines | Core integrity fell below 50% 435 | -10/Mines | Joined a pair of Derelicts in attacking an 0b10 outpost 478 | -10/Mines | Discovered new exit (range 12) 487 | -10/Mines | Identified exit to Materials 488 | -10/Mines | Entered Materials 488 | -9/Materials | Evolved 2 slots: Utility x2 649 | -9/Materials | Discovered new exit (range 15) 662 | -9/Materials | Identified exit to Mines 663 | -9/Materials | Entered Mines 675 | -9/Mines | Met a Derelict bent on vengeance 678 | -9/Mines | Discovered new exit (range 13) 685 | -9/Mines | Core integrity fell below 50% 688 | -9/Mines | Identified exit to Materials 689 | -9/Mines | Entered Materials 689 | -8/Materials | Evolved 2 slots: Utility x2 720 | -8/Materials | Lost 4 parts (1p2n1w) 825 | -8/Materials | Core integrity fell below 50% 825 | -8/Materials | Discovered new exit (range 7) 827 | -8/Materials | Identified exit to Storage 828 | -8/Materials | Entered Storage 849 | -8/Storage | Self-destructed Last Messages --------------- 00819_ Acquired 15 matter. 00824_ Wheel destroyed. 00825_ EXIT=FOUND 00825_ W-25 Informer sends out distress signal. 00827_ EXIT=IDENTIFIED: STORAGE LOCATION=STORAGE GOAL=ESCAPE 00838_ W-25 Informer sends out distress signal. 00840_ Connecting with Door Terminal... >>Open Sealed Heavy Doors opened. 00841_ Acquired Drone Bay. 00843_ Drone released from Drone Bay. 00843_ Acquired Drone Bay. 00844_ Drone released from Drone Bay. 00845_ Dropped Drone Bay. 00846_ Drone released from Drone Bay. 00846_ Acquired Drone Bay. 00847_ Drone released from Drone Bay. 00848_ Drone destroyed. Map ----- +----------------------------------------------------+ | | | | | | | | | | | | | ?????????????????????????????????????? | | ?????????????????????????????????????? | | ?????????????????????????????????????? | | ?????????????????????????????????????? | | ?????????????????????????????????????? | | ?????????????????????????????????????? | | ??????????????????????????????#####??? | | ??????????????????????????????# #??? | | ??????????????????????????????# #??? | | ??????????????????????????????# #??? | | ??????????????????????????????# #??? | | ??????????????????????????????# #??? | | ??????????????????????????????# #??? | | ??????????????????????????????# #??? | | ??????????????????????????????# #??? | | ??????????????????????????????# #??? | | ??????????????????????????????# #??? | | ??????????????????????????????# #??? | | ?????????????????????########?# #??? | | ?????????????????????#!!!@#T### #??? | | ?????????????????????# % ## #??? | | ?????????????????????#!! # ## #??? | | ?????????????????????######n ## #??? | | ????????????????????########g## #??? | | ???????????? a g%n #??? | | ???????????? r gg #??? | | ???????????? w a #??? | | ??????????????#+#########+#########??? | | ??????????????????????? ???????????? | | ????????????????????? //????????????? | | ????????????????????# //????????????? | | ????????????????????# /?????????????? | | ????????????????????# ??????????????? | | ????????????????????# ??????????????? | | ????????????????????# ???????????????? | | ????????????????????#????????????????? | | ?????????????????????????????????????? | | ?????????????????????????????????????? | | ?????????????????????????????????????? | | ?????????????????????????????????????? | | ?????????????????????????????????????? | | ?????????????????????????????????????? | | ?????????????????????????????????????? | | ?????????????????????????????????????? | +----------------------------------------------------+ Best States ------------- Heat Dissipation 45 Energy Generation 10 Energy Capacity 250 Matter Stores 300 Matter Capacity 300 Sight Range 16 Terrain Scan Density 10 Evasion (%) 50 Targeting Accuracy 16 Item Schematics ----------------- None Robot Schematics ------------------ None Fabricated ------------ Nothing Alien Tech Used ----------------- None Achievements -------------- None Challenges ------------ None Game ------ Seed EtherialHardlightRifle Manual? 0 Play Time 00:10:12 Cumulative 54.8 hours Start 2021.03.11 @ 20:20:02 End 2021.03.11 @ 20:33:48 Sessions 1 Manual Loads 0 Difficulty Rogue Special Mode None Game No. 95 Rogue 95 Adventurer 0 Explorer 0 Win Type - Total 1 Types 1/0/0/0/0/0/0/0/0 Lore% 36 Gallery% 50 Achievement% 42 Wizard Run 0 Options --------- ASCII 0 Keyboard 0 Movement Numpad Keybinds 0 Fullscreen 1 Font 18/Terminus Map View 76x50 Tactical HUD 1 Map Filters NONE Filters NONE Steam 1 RUN: b81304ce-0c38-4160-b1ce-1e76cf41ac58